[Event "*** Titled Tuesday Blitz"]
[Site "Chess.com"]
[Date "2020.04.28"]
[Round "5"]
[White "adricalderon8"]
[Black "GmSergioBarrientos"]
[Result "0-1"]
[WhiteElo "2410"]
[BlackElo "2590"]
[TimeControl "180+1"]
[EndTime "10:54:06 PDT"]
[Termination "GmSergioBarrientos won by resignation"]

1. e4 {[%clk 0:03:00.9]} 1... c5 {[%clk 0:02:59.2]} 2. Nf3 {[%clk 0:02:57.4]}
2... e6 {[%clk 0:02:59]} 3. d4 {[%clk 0:02:57.1]} 3... cxd4 {[%clk 0:02:58.9]}
4. Nxd4 {[%clk 0:02:58]} 4... a6 {[%clk 0:02:59.6]} 5. Bd3 {[%clk 0:02:57.4]}
5... b5 {[%clk 0:02:59.1]} 6. a4 {[%clk 0:02:56.1]} 6... b4 {[%clk 0:02:56.1]}
7. O-O {[%clk 0:02:55.6]} 7... Bb7 {[%clk 0:02:55.8]} 8. c4 {[%clk 0:02:45.4]}
8... Nc6 {[%clk 0:02:54.5]} 9. Nc2 {[%clk 0:02:43]} 9... Nge7 {[%clk 0:02:54]}
10. b3 {[%clk 0:02:43.2]} 10... Ng6 {[%clk 0:02:53.8]} 11. Bb2 {[%clk
0:02:43.1]} 11... Bd6 {[%clk 0:02:52.6]} 12. Nd2 {[%clk 0:02:39.5]} 12... O-O
{[%clk 0:02:47.9]} 13. Ne3 {[%clk 0:02:33.3]} 13... Nce5 {[%clk 0:02:39.9]} 14.
Be2 {[%clk 0:02:32.3]} 14... Bc5 {[%clk 0:02:33.8]} 15. Ng4 {[%clk 0:02:09.2]}
15... Nxg4 {[%clk 0:02:10.5]} 16. Bxg4 {[%clk 0:02:10.1]} 16... Qg5 {[%clk
0:02:08.9]} 17. g3 {[%clk 0:01:51.7]} 17... Ne5 {[%clk 0:01:55.7]} 18. Be2
{[%clk 0:01:48.3]} 18... d6 {[%clk 0:01:43.5]} 19. Kg2 {[%clk 0:01:43.9]} 19...
Qg6 {[%clk 0:01:31.6]} 20. Qc2 {[%clk 0:01:28.8]} 20... f5 {[%clk 0:01:30.4]}
21. f4 {[%clk 0:01:10.2]} 21... fxe4 {[%clk 0:01:26.1]} 22. Rac1 {[%clk
0:00:54.2]} 22... Nd3 {[%clk 0:01:24]} 23. Ba1 {[%clk 0:00:32.9]} 23... Nxc1
{[%clk 0:01:21.3]} 24. Qxc1 {[%clk 0:00:33.4]} 24... e3+ {[%clk 0:01:17.1]} 25.
Nf3 {[%clk 0:00:32.7]} 25... Rxf4 {[%clk 0:01:17.1]} 26. Qb2 {[%clk 0:00:29.2]}
26... Raf8 {[%clk 0:01:13.3]} 27. Qxg7+ {[%clk 0:00:25.3]} 27... Qxg7 {[%clk
0:01:13]} 28. Bxg7 {[%clk 0:00:25.9]} 28... Rxf3 {[%clk 0:01:10.6]} 29. Bxf3
{[%clk 0:00:24.2]} 29... Rxf3 {[%clk 0:01:10]} 30. Rf2 {[%clk 0:00:23.9]} 0-1

[Event "*** Titled Tuesday Blitz"]
[Site "Chess.com"]
[Date "2020.04.28"]
[Round "5"]
[White "Maghalashvili"]
[Black "wild_cat99"]
[Result "1-0"]
[WhiteElo "2797"]
[BlackElo "2558"]
[TimeControl "180+1"]
[EndTime "10:54:10 PDT"]
[Termination "Maghalashvili won by resignation"]

1. Nf3 {[%clk 0:03:00.9]} 1... Nf6 {[%clk 0:03:00]} 2. g3 {[%clk 0:03:01.1]}
2... g6 {[%clk 0:03:00.4]} 3. b3 {[%clk 0:03:01.4]} 3... Bg7 {[%clk 0:03:00.7]}
4. Bb2 {[%clk 0:03:02.1]} 4... O-O {[%clk 0:03:01.2]} 5. Bg2 {[%clk 0:03:01.6]}
5... d6 {[%clk 0:03:00.8]} 6. d4 {[%clk 0:03:01.2]} 6... c5 {[%clk 0:02:58.7]}
7. O-O {[%clk 0:03:00.6]} 7... cxd4 {[%clk 0:02:57.9]} 8. Nxd4 {[%clk
0:03:00.9]} 8... Nbd7 {[%clk 0:02:51.3]} 9. c4 {[%clk 0:03:00.7]} 9... Nc5
{[%clk 0:02:50.5]} 10. Nc3 {[%clk 0:03:00.5]} 10... a6 {[%clk 0:02:46.7]} 11.
Rc1 {[%clk 0:02:57.3]} 11... Rb8 {[%clk 0:02:30.2]} 12. Qc2 {[%clk 0:02:49.4]}
12... Bf5 {[%clk 0:02:25.9]} 13. Nxf5 {[%clk 0:02:48.5]} 13... gxf5 {[%clk
0:02:25.4]} 14. Qxf5 {[%clk 0:02:48.6]} 14... Qd7 {[%clk 0:02:25]} 15. Qxd7
{[%clk 0:02:46.5]} 15... Ncxd7 {[%clk 0:02:25.9]} 16. Rc2 {[%clk 0:02:37.7]}
16... b5 {[%clk 0:02:23.2]} 17. Nd5 {[%clk 0:02:31.2]} 17... Nxd5 {[%clk
0:02:14.4]} 18. Bxg7 {[%clk 0:02:28.2]} 18... Kxg7 {[%clk 0:02:15.3]} 19. cxd5
{[%clk 0:02:28.1]} 19... Rfc8 {[%clk 0:02:03]} 20. Rfc1 {[%clk 0:02:27.4]} 20...
Rxc2 {[%clk 0:01:59.3]} 21. Rxc2 {[%clk 0:02:27.9]} 21... Rb7 {[%clk 0:02:00.2]}
22. b4 {[%clk 0:02:19.7]} 22... Kg6 {[%clk 0:01:53.7]} 23. f4 {[%clk 0:02:14.5]}
23... Ra7 {[%clk 0:01:48]} 24. Kf2 {[%clk 0:02:00.4]} 24... a5 {[%clk
0:01:47.1]} 25. a3 {[%clk 0:01:59.9]} 25... axb4 {[%clk 0:01:43.8]} 26. axb4
{[%clk 0:02:00.8]} 26... Nb6 {[%clk 0:01:41.6]} 27. Rc6 {[%clk 0:01:51.3]} 27...
Nc4 {[%clk 0:01:40.1]} 28. Be4+ {[%clk 0:01:46]} 28... Kg7 {[%clk 0:01:40.4]}
29. Bd3 {[%clk 0:01:45.4]} 29... Nb2 {[%clk 0:01:38.6]} 30. Rb6 {[%clk
0:01:28.5]} 30... Nxd3+ {[%clk 0:01:34.1]} 31. exd3 {[%clk 0:01:28.4]} 31...
Ra2+ {[%clk 0:01:35]} 32. Kf3 {[%clk 0:01:27.2]} 32... Rxh2 {[%clk 0:01:29.3]}
33. Rxb5 {[%clk 0:01:27.3]} 33... Rb2 {[%clk 0:01:30.2]} 34. g4 {[%clk
0:01:24.7]} 34... Kf6 {[%clk 0:01:27.1]} 35. Rb8 {[%clk 0:01:21]} 35... h6
{[%clk 0:01:26.2]} 36. b5 {[%clk 0:01:20.3]} 36... e5 {[%clk 0:01:22.4]} 37.
dxe6 {[%clk 0:01:19.9]} 37... fxe6 {[%clk 0:01:22.8]} 38. b6 {[%clk 0:01:19.1]}
38... Kg7 {[%clk 0:01:22]} 39. b7 {[%clk 0:01:18.7]} 39... Rb3 {[%clk
0:01:20.4]} 40. Ke3 {[%clk 0:01:18]} 40... Rb5 {[%clk 0:01:13]} 41. f5 {[%clk
0:01:17.1]} 41... exf5 {[%clk 0:01:10.9]} 42. gxf5 {[%clk 0:01:18]} 42... Re5+
{[%clk 0:01:08.1]} 43. Kd4 {[%clk 0:01:17.5]} 43... Rb5 {[%clk 0:01:07.3]} 44.
f6+ {[%clk 0:01:17]} 44... Kf7 {[%clk 0:01:04.8]} 45. Rh8 {[%clk 0:01:14.9]}
45... Rb4+ {[%clk 0:01:04.5]} 46. Kc3 {[%clk 0:01:14.9]} 46... Rxb7 {[%clk
0:01:03.8]} 47. Rh7+ {[%clk 0:01:14.8]} 47... Kxf6 {[%clk 0:01:03.8]} 48. Rxb7
{[%clk 0:01:15.4]} 1-0

[Event "*** Titled Tuesday Blitz"]
[Site "Chess.com"]
[Date "2020.04.28"]
[Round "5"]
[White "keepitcool9499"]
[Black "bakki78"]
[Result "1-0"]
[WhiteElo "2465"]
[BlackElo "2715"]
[TimeControl "180+1"]
[EndTime "10:54:11 PDT"]
[Termination "keepitcool9499 won by resignation"]

1. d4 {[%clk 0:03:00.9]} 1... Nf6 {[%clk 0:02:59.2]} 2. c4 {[%clk 0:02:57.3]}
2... g6 {[%clk 0:02:59.3]} 3. Nc3 {[%clk 0:02:56.2]} 3... Bg7 {[%clk 0:02:59.5]}
4. e4 {[%clk 0:02:56.7]} 4... d6 {[%clk 0:02:59.7]} 5. Nge2 {[%clk 0:02:57.3]}
5... O-O {[%clk 0:02:54.4]} 6. f3 {[%clk 0:02:58.2]} 6... c5 {[%clk 0:02:52.2]}
7. Be3 {[%clk 0:02:58.3]} 7... Nc6 {[%clk 0:02:51.1]} 8. Qd2 {[%clk 0:02:57.9]}
8... Nd7 {[%clk 0:02:39.1]} 9. d5 {[%clk 0:02:31]} 9... Na5 {[%clk 0:02:38.7]}
10. Ng3 {[%clk 0:02:28.2]} 10... a6 {[%clk 0:02:31.1]} 11. h4 {[%clk 0:02:25.4]}
11... b5 {[%clk 0:02:13.5]} 12. cxb5 {[%clk 0:02:09.9]} 12... axb5 {[%clk
0:02:12.7]} 13. Rc1 {[%clk 0:02:00.4]} 13... b4 {[%clk 0:02:08.7]} 14. Nd1
{[%clk 0:01:52]} 14... b3 {[%clk 0:01:55.7]} 15. a3 {[%clk 0:01:47.9]} 15... Ne5
{[%clk 0:01:55]} 16. Bh6 {[%clk 0:01:45.1]} 16... Ba6 {[%clk 0:01:52.2]} 17.
Bxg7 {[%clk 0:01:33.3]} 17... Kxg7 {[%clk 0:01:51.8]} 18. Bxa6 {[%clk
0:01:32.4]} 18... Rxa6 {[%clk 0:01:50.8]} 19. h5 {[%clk 0:01:30.3]} 19... Rh8
{[%clk 0:01:46.6]} 20. Nf2 {[%clk 0:01:23.4]} 20... Nac4 {[%clk 0:01:42.6]} 21.
Rxc4 {[%clk 0:01:17.7]} 21... Nxc4 {[%clk 0:01:41.9]} 22. Qc3+ {[%clk
0:01:16.6]} 22... Ne5 {[%clk 0:01:41.5]} 23. f4 {[%clk 0:01:13.6]} 23... Qa5
{[%clk 0:01:33.3]} 24. Qxa5 {[%clk 0:01:08.9]} 24... Rxa5 {[%clk 0:01:31.4]} 25.
fxe5 {[%clk 0:01:07.2]} 25... dxe5 {[%clk 0:01:23.4]} 26. h6+ {[%clk 0:01:06.8]}
26... Kf8 {[%clk 0:01:22]} 27. O-O {[%clk 0:01:00.4]} 27... Ke8 {[%clk 0:01:21]}
28. Rc1 {[%clk 0:00:57.3]} 28... Kd7 {[%clk 0:01:19.2]} 29. Nd3 {[%clk
0:00:53.2]} 29... Kd6 {[%clk 0:01:18.6]} 30. Nf1 {[%clk 0:00:48.5]} 30... Ra4
{[%clk 0:01:18.7]} 31. Nd2 {[%clk 0:00:43.7]} 31... Rd4 {[%clk 0:01:17.5]} 32.
Nc4+ {[%clk 0:00:39.3]} 32... Kc7 {[%clk 0:01:17.2]} 33. Nxc5 {[%clk 0:00:36]}
33... Rc8 {[%clk 0:01:09.4]} 34. Nxb3 {[%clk 0:00:33.7]} 1-0

[Event "*** Titled Tuesday Blitz"]
[Site "Chess.com"]
[Date "2020.04.28"]
[Round "5"]
[White "MFBerna"]
[Black "TheBigBoss04"]
[Result "0-1"]
[WhiteElo "2442"]
[BlackElo "2729"]
[TimeControl "180+1"]
[EndTime "10:54:11 PDT"]
[Termination "TheBigBoss04 won by resignation"]

1. e4 {[%clk 0:03:00.9]} 1... g6 {[%clk 0:02:58.8]} 2. d4 {[%clk 0:02:59.4]}
2... Bg7 {[%clk 0:02:58.8]} 3. Nf3 {[%clk 0:02:58.3]} 3... d6 {[%clk 0:02:56.3]}
4. Nc3 {[%clk 0:02:57.9]} 4... e6 {[%clk 0:02:54.7]} 5. Be2 {[%clk 0:02:55.2]}
5... Ne7 {[%clk 0:02:49.3]} 6. Be3 {[%clk 0:02:49.8]} 6... a6 {[%clk 0:02:47.2]}
7. a4 {[%clk 0:02:49.5]} 7... b6 {[%clk 0:02:46.1]} 8. Qd2 {[%clk 0:02:48.9]}
8... h6 {[%clk 0:02:46.3]} 9. h4 {[%clk 0:02:43.3]} 9... Bb7 {[%clk 0:02:45.4]}
10. Bd3 {[%clk 0:02:33.1]} 10... Nd7 {[%clk 0:02:44.4]} 11. Ne2 {[%clk
0:02:30.6]} 11... c5 {[%clk 0:02:42.4]} 12. c3 {[%clk 0:02:30.7]} 12... Nf6
{[%clk 0:02:37.8]} 13. Ng3 {[%clk 0:02:30.2]} 13... d5 {[%clk 0:02:30]} 14. exd5
{[%clk 0:02:21.6]} 14... Nexd5 {[%clk 0:02:27.6]} 15. dxc5 {[%clk 0:02:13]}
15... Nxe3 {[%clk 0:02:27.7]} 16. Qxe3 {[%clk 0:02:13.9]} 16... Nd5 {[%clk
0:02:26.2]} 17. Qe4 {[%clk 0:01:55.9]} 17... bxc5 {[%clk 0:01:52.1]} 18. h5
{[%clk 0:01:55.8]} 18... g5 {[%clk 0:01:48.9]} 19. Nf5 {[%clk 0:01:47.9]} 19...
Bf6 {[%clk 0:01:48.8]} 20. O-O-O {[%clk 0:01:09.2]} 20... Qb6 {[%clk 0:01:41.1]}
21. a5 {[%clk 0:00:59.3]} 21... Qc7 {[%clk 0:01:18]} 22. Bc4 {[%clk 0:00:39.4]}
22... O-O-O {[%clk 0:01:15.1]} 23. Ne3 {[%clk 0:00:15.6]} 23... Nxc3 {[%clk
0:01:06.6]} 24. Rxd8+ {[%clk 0:00:12.9]} 24... Rxd8 {[%clk 0:01:07.5]} 25. Bxa6
{[%clk 0:00:13.8]} 25... Nxe4 {[%clk 0:01:07.3]} 0-1

[Event "*** Titled Tuesday Blitz"]
[Site "Chess.com"]
[Date "2020.04.28"]
[Round "5"]
[White "Semen_Khanin"]
[Black "martinique24"]
[Result "1-0"]
[WhiteElo "2706"]
[BlackElo "2437"]
[TimeControl "180+1"]
[EndTime "10:54:12 PDT"]
[Termination "Semen_Khanin won by resignation"]

1. d4 {[%clk 0:03:00.9]} 1... Nf6 {[%clk 0:02:57.4]} 2. Nf3 {[%clk 0:03:01.4]}
2... g6 {[%clk 0:02:57]} 3. c4 {[%clk 0:03:01.2]} 3... Bg7 {[%clk 0:02:56.8]} 4.
Nc3 {[%clk 0:03:01.4]} 4... d5 {[%clk 0:02:56.6]} 5. cxd5 {[%clk 0:03:01.6]}
5... Nxd5 {[%clk 0:02:56.1]} 6. e4 {[%clk 0:03:02.3]} 6... Nxc3 {[%clk
0:02:56.1]} 7. bxc3 {[%clk 0:03:02.9]} 7... c5 {[%clk 0:02:56.3]} 8. Be3 {[%clk
0:03:03.6]} 8... Qa5 {[%clk 0:02:54.3]} 9. Qd2 {[%clk 0:03:03.6]} 9... O-O
{[%clk 0:02:54.2]} 10. Rc1 {[%clk 0:03:02.2]} 10... Rd8 {[%clk 0:02:53.7]} 11.
d5 {[%clk 0:02:50.7]} 11... e6 {[%clk 0:02:53.4]} 12. c4 {[%clk 0:02:49.2]}
12... Qxd2+ {[%clk 0:02:49.5]} 13. Kxd2 {[%clk 0:02:44.6]} 13... f5 {[%clk
0:02:43.6]} 14. Bd3 {[%clk 0:02:42.4]} 14... Na6 {[%clk 0:02:40.7]} 15. Ke2
{[%clk 0:02:40.3]} 15... b6 {[%clk 0:02:38.1]} 16. a3 {[%clk 0:02:38.6]} 16...
Bb2 {[%clk 0:02:33.7]} 17. Rc2 {[%clk 0:02:35.3]} 17... Bxa3 {[%clk 0:02:31.3]}
18. Ra2 {[%clk 0:02:34.8]} 18... Bb4 {[%clk 0:02:29]} 19. dxe6 {[%clk
0:02:32.6]} 19... Nc7 {[%clk 0:02:17.8]} 20. exf5 {[%clk 0:02:31.1]} 20... gxf5
{[%clk 0:02:16.9]} 21. Bxf5 {[%clk 0:02:18.6]} 21... Bxe6 {[%clk 0:02:16.4]} 22.
Bxe6+ {[%clk 0:02:17.7]} 22... Nxe6 {[%clk 0:02:16]} 23. Ne5 {[%clk 0:02:17.3]}
23... Nd4+ {[%clk 0:02:13]} 24. Bxd4 {[%clk 0:02:10.6]} 24... Rxd4 {[%clk
0:02:12.2]} 25. Ke3 {[%clk 0:02:04.9]} 25... a5 {[%clk 0:02:04.7]} 26. f4 {[%clk
0:02:02.5]} 26... a4 {[%clk 0:01:59.6]} 27. g4 {[%clk 0:02:00.5]} 27... a3
{[%clk 0:01:57.4]} 28. g5 {[%clk 0:02:00.8]} 28... Rad8 {[%clk 0:01:48.7]} 29.
Nc6 {[%clk 0:01:39.5]} 29... Re8+ {[%clk 0:01:46]} 30. Kf3 {[%clk 0:01:37.8]}
30... Rxc4 {[%clk 0:01:42.1]} 31. h4 {[%clk 0:01:37.7]} 31... Ree4 {[%clk
0:01:34.8]} 32. f5 {[%clk 0:01:32.4]} 32... Rf4+ {[%clk 0:01:29.5]} 33. Ke3
{[%clk 0:01:28.7]} 33... Rxf5 {[%clk 0:01:25.4]} 34. Ne7+ {[%clk 0:01:28.1]}
34... Kf7 {[%clk 0:01:23.4]} 35. Nxf5 {[%clk 0:01:29]} 35... Rc3+ {[%clk
0:01:12.6]} 36. Ke4 {[%clk 0:01:28.3]} 36... Ba5 {[%clk 0:01:03.4]} 37. h5
{[%clk 0:01:22.1]} 37... Rc4+ {[%clk 0:00:49.6]} 38. Kd5 {[%clk 0:01:20.9]}
38... Rg4 {[%clk 0:00:40.5]} 39. Nh6+ {[%clk 0:01:20.8]} 1-0

[Event "*** Titled Tuesday Blitz"]
[Site "Chess.com"]
[Date "2020.04.28"]
[Round "5"]
[White "violetflower04"]
[Black "Corpescador"]
[Result "0-1"]
[WhiteElo "2194"]
[BlackElo "2358"]
[TimeControl "180+1"]
[EndTime "10:54:14 PDT"]
[Termination "Corpescador won by resignation"]

1. b3 {[%clk 0:03:00.9]} 1... d5 {[%clk 0:02:59.3]} 2. Bb2 {[%clk 0:03:01.8]}
2... Nf6 {[%clk 0:02:59.3]} 3. e3 {[%clk 0:03:02.3]} 3... Bf5 {[%clk 0:02:59.5]}
4. Nf3 {[%clk 0:03:02.5]} 4... e6 {[%clk 0:02:59.8]} 5. c4 {[%clk 0:03:03.1]}
5... c6 {[%clk 0:02:56.6]} 6. Nh4 {[%clk 0:03:02.9]} 6... Bg4 {[%clk 0:02:50.7]}
7. Be2 {[%clk 0:02:54.6]} 7... Bxe2 {[%clk 0:02:46.9]} 8. Qxe2 {[%clk
0:02:55.5]} 8... Nbd7 {[%clk 0:02:45.7]} 9. O-O {[%clk 0:02:54]} 9... Bd6 {[%clk
0:02:34.2]} 10. f4 {[%clk 0:02:46.8]} 10... O-O {[%clk 0:02:30.3]} 11. Nf3
{[%clk 0:02:45.3]} 11... Re8 {[%clk 0:02:23.6]} 12. Ne5 {[%clk 0:02:44.5]} 12...
Be7 {[%clk 0:02:13.4]} 13. d3 {[%clk 0:02:36.3]} 13... Nxe5 {[%clk 0:02:11.6]}
14. fxe5 {[%clk 0:02:37.2]} 14... Nd7 {[%clk 0:02:10.9]} 15. Nd2 {[%clk
0:02:25.1]} 15... f6 {[%clk 0:02:03.1]} 16. Qg4 {[%clk 0:02:15.1]} 16... f5
{[%clk 0:01:50.4]} 17. Qg3 {[%clk 0:02:04.8]} 17... Nc5 {[%clk 0:01:45.2]} 18.
e4 {[%clk 0:01:32.8]} 18... dxe4 {[%clk 0:01:39.7]} 19. d4 {[%clk 0:01:20.9]}
19... Nd3 {[%clk 0:01:36.3]} 20. Bc3 {[%clk 0:01:21.2]} 20... Bb4 {[%clk
0:01:30.3]} 21. Bxb4 {[%clk 0:01:10.3]} 21... Qxd4+ {[%clk 0:01:26.1]} 22. Kh1
{[%clk 0:01:10.9]} 22... Nxb4 {[%clk 0:01:25.3]} 23. Rad1 {[%clk 0:00:59]} 23...
Nd3 {[%clk 0:01:24.8]} 24. h4 {[%clk 0:00:39]} 24... Rad8 {[%clk 0:01:02.3]} 25.
Kh2 {[%clk 0:00:38.5]} 25... Qxe5 {[%clk 0:00:55.2]} 26. Qxe5 {[%clk 0:00:39]}
26... Nxe5 {[%clk 0:00:55]} 27. Nb1 {[%clk 0:00:38.2]} 27... Ng4+ {[%clk
0:00:51.8]} 28. Kg3 {[%clk 0:00:37.6]} 28... Ne3 {[%clk 0:00:47.2]} 29. Rxd8
{[%clk 0:00:36.5]} 29... Rxd8 {[%clk 0:00:48.1]} 30. Kf2 {[%clk 0:00:37.1]} 0-1

[Event "*** Titled Tuesday Blitz"]
[Site "Chess.com"]
[Date "2020.04.28"]
[Round "5"]
[White "Pechen_Yeltsina"]
[Black "Jeffinho023"]
[Result "0-1"]
[WhiteElo "2745"]
[BlackElo "2567"]
[TimeControl "180+1"]
[EndTime "10:54:15 PDT"]
[Termination "Jeffinho023 won by checkmate"]

1. e4 {[%clk 0:02:51.7]} 1... e5 {[%clk 0:02:48.6]} 2. Nc3 {[%clk 0:02:50.5]}
2... Nf6 {[%clk 0:02:47.6]} 3. Bc4 {[%clk 0:02:50.9]} 3... Nc6 {[%clk
0:02:45.8]} 4. d3 {[%clk 0:02:51.1]} 4... Bb4 {[%clk 0:02:41.4]} 5. Ne2 {[%clk
0:02:50.8]} 5... d5 {[%clk 0:02:40]} 6. exd5 {[%clk 0:02:51.7]} 6... Nxd5 {[%clk
0:02:40.8]} 7. Bd2 {[%clk 0:02:52.4]} 7... Nxc3 {[%clk 0:02:39.4]} 8. Nxc3
{[%clk 0:02:49.2]} 8... O-O {[%clk 0:02:37.2]} 9. a3 {[%clk 0:02:49.4]} 9...
Bxc3 {[%clk 0:02:26.4]} 10. Bxc3 {[%clk 0:02:50.3]} 10... Re8 {[%clk 0:02:26.7]}
11. O-O {[%clk 0:02:47]} 11... Be6 {[%clk 0:02:26.5]} 12. Bxe6 {[%clk
0:02:46.3]} 12... Rxe6 {[%clk 0:02:26.3]} 13. f4 {[%clk 0:02:45.6]} 13... exf4
{[%clk 0:02:21.5]} 14. Rxf4 {[%clk 0:02:46.5]} 14... Rg6 {[%clk 0:02:17.6]} 15.
Qf3 {[%clk 0:02:45.1]} 15... Qd7 {[%clk 0:02:15]} 16. Re1 {[%clk 0:02:44]} 16...
Re8 {[%clk 0:02:13.4]} 17. Rfe4 {[%clk 0:02:40.3]} 17... Rxe4 {[%clk 0:02:06.1]}
18. Rxe4 {[%clk 0:02:41.2]} 18... h6 {[%clk 0:02:01.6]} 19. b4 {[%clk
0:02:32.5]} 19... a6 {[%clk 0:02:00.9]} 20. h3 {[%clk 0:02:31.7]} 20... Ne7
{[%clk 0:01:56]} 21. Bb2 {[%clk 0:02:18.9]} 21... Nf5 {[%clk 0:01:46.5]} 22. Re5
{[%clk 0:02:06.6]} 22... Nh4 {[%clk 0:01:43.3]} 23. Qe4 {[%clk 0:01:55.4]} 23...
Nxg2 {[%clk 0:01:14.2]} 24. Kh2 {[%clk 0:01:45.2]} 24... Kh7 {[%clk 0:00:56.7]}
25. Qd5 {[%clk 0:01:23.9]} 25... Qa4 {[%clk 0:00:45.2]} 26. Qc4 {[%clk
0:01:13.1]} 26... Nh4 {[%clk 0:00:25.5]} 27. Ra5 {[%clk 0:01:07.2]} 27... Nf3+
{[%clk 0:00:23.3]} 28. Kh1 {[%clk 0:01:06.5]} 28... Rg1# {[%clk 0:00:22.5]} 0-1

[Event "*** Titled Tuesday Blitz"]
[Site "Chess.com"]
[Date "2020.04.28"]
[Round "5"]
[White "PowerThinking2650"]
[Black "walkingcreep"]
[Result "1-0"]
[WhiteElo "2273"]
[BlackElo "2636"]
[TimeControl "180+1"]
[EndTime "10:54:16 PDT"]
[Termination "PowerThinking2650 won by checkmate"]

1. e4 {[%clk 0:03:00.9]} 1... c5 {[%clk 0:02:58.7]} 2. Nf3 {[%clk 0:03:00.5]}
2... e6 {[%clk 0:02:58.4]} 3. d4 {[%clk 0:03:00.7]} 3... cxd4 {[%clk 0:02:59.3]}
4. Nxd4 {[%clk 0:03:01.2]} 4... Nf6 {[%clk 0:02:59.9]} 5. Nc3 {[%clk 0:03:01.3]}
5... d6 {[%clk 0:02:59.8]} 6. Bc4 {[%clk 0:02:57.7]} 6... a6 {[%clk 0:02:58.7]}
7. Bb3 {[%clk 0:02:57]} 7... Nbd7 {[%clk 0:02:58.6]} 8. O-O {[%clk 0:02:47.4]}
8... Nc5 {[%clk 0:02:54.9]} 9. f4 {[%clk 0:02:47.4]} 9... Be7 {[%clk 0:02:50.2]}
10. f5 {[%clk 0:02:31.7]} 10... e5 {[%clk 0:02:42.5]} 11. Nde2 {[%clk
0:02:31.4]} 11... O-O {[%clk 0:02:39]} 12. Ng3 {[%clk 0:02:25]} 12... b5 {[%clk
0:02:38]} 13. Bg5 {[%clk 0:02:17.1]} 13... Bb7 {[%clk 0:02:28.7]} 14. Bxf6
{[%clk 0:02:15.7]} 14... Bxf6 {[%clk 0:02:29.6]} 15. Bd5 {[%clk 0:02:12.1]}
15... Bxd5 {[%clk 0:01:40]} 16. Nxd5 {[%clk 0:02:11]} 16... Bh4 {[%clk
0:01:37.4]} 17. f6 {[%clk 0:02:08.4]} 17... g6 {[%clk 0:01:24.4]} 18. Qd2 {[%clk
0:01:37.2]} 18... Bxg3 {[%clk 0:01:13.2]} 19. Qh6 {[%clk 0:01:18.8]} 19... Ne6
{[%clk 0:01:12.8]} 20. hxg3 {[%clk 0:01:12.1]} 20... Rc8 {[%clk 0:01:03.2]} 21.
c3 {[%clk 0:01:02.3]} 21... Rc4 {[%clk 0:00:59.8]} 22. Rae1 {[%clk 0:00:58.4]}
22... Rc5 {[%clk 0:00:38.2]} 23. Ne7+ {[%clk 0:00:52.3]} 23... Kh8 {[%clk
0:00:37.5]} 24. Kf2 {[%clk 0:00:51.3]} 24... Qb6 {[%clk 0:00:30.3]} 25. Qxh7+
{[%clk 0:00:48.8]} 25... Kxh7 {[%clk 0:00:29.1]} 26. Rh1# {[%clk 0:00:48.6]} 1-0

[Event "*** Titled Tuesday Blitz"]
[Site "Chess.com"]
[Date "2020.04.28"]
[Round "5"]
[White "AlexZambrano"]
[Black "skoularikii"]
[Result "0-1"]
[WhiteElo "2341"]
[BlackElo "2525"]
[TimeControl "180+1"]
[EndTime "10:54:17 PDT"]
[Termination "skoularikii won on time"]

1. Nf3 {[%clk 0:03:00.1]} 1... c5 {[%clk 0:02:52.6]} 2. c4 {[%clk 0:02:57.4]}
2... Nc6 {[%clk 0:02:52.3]} 3. g3 {[%clk 0:02:57.1]} 3... g6 {[%clk 0:02:52.3]}
4. Bg2 {[%clk 0:02:56.9]} 4... Bg7 {[%clk 0:02:52.7]} 5. O-O {[%clk 0:02:56]}
5... e5 {[%clk 0:02:52.9]} 6. d3 {[%clk 0:02:55.3]} 6... Nge7 {[%clk 0:02:53]}
7. Nc3 {[%clk 0:02:55.4]} 7... d6 {[%clk 0:02:51.5]} 8. Bg5 {[%clk 0:02:55]}
8... O-O {[%clk 0:02:46.1]} 9. Qd2 {[%clk 0:02:55.1]} 9... Be6 {[%clk
0:02:37.5]} 10. Bh6 {[%clk 0:02:50.6]} 10... f6 {[%clk 0:02:33.9]} 11. Bxg7
{[%clk 0:02:49.9]} 11... Kxg7 {[%clk 0:02:34]} 12. e4 {[%clk 0:02:43.9]} 12...
Qd7 {[%clk 0:02:30.6]} 13. Rfc1 {[%clk 0:02:31.1]} 13... Bh3 {[%clk 0:02:23.7]}
14. Bh1 {[%clk 0:02:30.1]} 14... g5 {[%clk 0:02:20.2]} 15. a3 {[%clk 0:02:27.9]}
15... a5 {[%clk 0:02:16.2]} 16. Ne1 {[%clk 0:01:47.3]} 16... Nd4 {[%clk
0:02:15]} 17. Qd1 {[%clk 0:01:38.6]} 17... a4 {[%clk 0:02:12.6]} 18. Rab1 {[%clk
0:01:29.3]} 18... h5 {[%clk 0:02:03.2]} 19. Ne2 {[%clk 0:00:47.5]} 19... Nb3
{[%clk 0:01:59.8]} 20. Rc3 {[%clk 0:00:35.3]} 20... Nc6 {[%clk 0:01:58.7]} 21.
Rxb3 {[%clk 0:00:20.3]} 21... axb3 {[%clk 0:01:58]} 22. Qxb3 {[%clk 0:00:20.4]}
22... Bg4 {[%clk 0:01:56.4]} 23. f3 {[%clk 0:00:17.1]} 23... Be6 {[%clk
0:01:56.3]} 24. Qc2 {[%clk 0:00:11.9]} 24... b5 {[%clk 0:01:49]} 25. cxb5 {[%clk
0:00:06.6]} 25... Nd4 {[%clk 0:01:48.8]} 26. Nxd4 {[%clk 0:00:05.6]} 26... cxd4
{[%clk 0:01:49.2]} 27. a4 {[%clk 0:00:05.8]} 27... Rfc8 {[%clk 0:01:49.2]} 28.
Qd2 {[%clk 0:00:05.9]} 28... Rxa4 {[%clk 0:01:46.4]} 29. Bg2 {[%clk 0:00:02.3]}
29... Qxb5 {[%clk 0:01:46.1]} 30. Bf1 {[%clk 0:00:02.6]} 30... Qb3 {[%clk
0:01:43.9]} 31. Be2 {[%clk 0:00:01.6]} 31... Qb4 {[%clk 0:01:39.6]} 0-1